Cogmind - Beta 17 @@@ ROGUE MODE // 2026.07.15 @ 06:36:27 Player: nnnnsk Result: Destroyed by D-53 Grenadier with Mini Grenade Launcher Performance ------------- Evolutions (0) 0 Regions Visited (2) 400 Robots Destroyed (17) 85 Value Destroyed (290) 290 Prototype IDs (0) 0 Alien Tech Used (0) 0 Bonus (0) 0 TOTAL SCORE: 775 Bonus ------- None Cogmind --------- Core Integrity 0/250 Matter 187/300 Energy 58/100 System Corruption 0% Temperature Cool (30) Movement Treading (240) Ox1 Location -10/Mines Parts ------- > --- POWER (1) -------- (None) > --- PROPULSION (2) --- Light Treads > --- UTILITY (2) ------ Small Storage Unit Large Storage Unit > --- WEAPON (2) ------- Medium Laser Small Laser > --- INVENTORY (15) --- Light Treads Aluminum Leg Aluminum Leg Aluminum Leg Wheel Compact Wheel Sensor Array Improved Terrain Scanner Grenade Launcher Mining Laser Peak State ------------ > --- POWER ------------ Light Nuclear Core > --- PROPULSION ------- Light Treads Light Treads > --- UTILITY ---------- Large Storage Unit Light Armor Plating > --- WEAPON ----------- Medium Laser Assault Rifle > --- INVENTORY -------- Light Ion Engine Light Ion Engine Light Treads Light Treads Aluminum Leg Aluminum Leg Wheel Compact Wheel Small Storage Unit Improved Terrain Scanner Seismic Detector Weapon Shielding Medium Laser Small Laser Grenade Launcher [Rating: 10] Favorites ----------- Power Light Nuclear Core Engine Ion Engine Power Core Light Nuclear Core Propulsion Light Treads Treads Light Treads Utility Large Storage Unit Device Improved Terrain Scanner Storage Large Storage Unit Protection Light Armor Plating Weapon Assault Rifle Energy Gun Medium Laser Ballistic Gun Assault Rifle Launcher Grenade Launcher Build | -11 -10 -10 ------- Run | Yrd Mat Min Slots Evolved . | . . . Power . | . . . Propulsion . | . . . Utility . | . . . Weapon . | . . . Parts Attached 17 | 7 6 4 Power 3 | 1 1 1 Engine 2 | 1 . 1 Core 1 | . 1 . Reactor . | . . . Propulsion 3 | 2 . 1 Treads 3 | 2 . 1 Leg . | . . . Wheel . | . . . Hover . | . . . Flight . | . . . Utility 6 | 1 3 2 Device 2 | . 1 1 Storage 2 | 1 1 . Processor . | . . . Hackware . | . . . Protection 2 | . 1 1 Artifact . | . . . Weapon 5 | 3 2 . Energy Gun 3 | 2 1 . Energy Cannon . | . . . Ballistic Gun 1 | 1 . . Ballistic Cannon . | . . . Launcher 1 | . 1 . Special Weapon . | . . . Impact Weapon . | . . . Slashing Weapon . | . . . Piercing Weapon . | . . . Special Melee Weapon . | . . . Unidentified Prototypes . | . . . Parts Lost 9 | . . 9 Power 2 | . . 2 Propulsion 2 | . . 2 Utility 3 | . . 3 Weapon 2 | . . 2 Highest Loss Streak 7 | . . 7 To Critical Strikes . | . . . Average Backups 13 | 3 13 14 Power 1 | . 1 1 Propulsion 5 | 2 5 5 Utility 2 | . 3 2 Weapon 3 | . 2 4 Tool/Special . | . . . Unused Backups 9 | . 1 8 Power 1 | . . 1 Propulsion 6 | . . 6 Utility 2 | . 1 1 Weapon . | . . . Tool/Special . | . . . Average Slot Usage (%) 99 | . 99 99 Engine 4 | . 5 1 Core 9 | . 8 12 Treads 27 | . 28 27 Storage 14 | . 14 14 Protection 13 | . 12 13 Energy Gun 12 | . 13 10 Ballistic Gun 14 | . 14 14 Launcher 1 | . . 3 Peak Build Rating 10 | 6 10 10 Average Rating 9 | 5 9 9 On Entrance 5 | . 6 10 Avg Prop Armor Cover (%) . | . . . Naked Turns . | . . . Heaviest Build 33 | 14 33 33 Greatest Support 40 | 40 40 40 Greatest Overweight (x) . | . . . Average Overweight (x) . | . . . Largest Inventory Capacity 15 | 8 15 15 Average Capacity 14 | 7 14 15 Most Carried 15 | 6 15 15 Average Carried 13 | 3 13 14 Final Capacity 15 | 8 15 15 Final Carried 15 | 6 15 10 Class Distribution -------------------- 100% | Mutant Dominant Class ---------------- Mutant | -10/Materials Mutant | -10/Mines Resources | -11 -10 -10 ----------- Run | Yrd Mat Min Matter Collected 527 | 166 253 108 Remotely . | . . . Salvage Created 463 | . 286 177 Parts 29 | . 20 9 Haulers Intercepted 2 | . 2 . Recyclers Shooed . | . . . Parts Field Recycled . | . . . Retrieved Matter . | . . . Parts Self-Destructed . | . . . Prevented . | . . . Parts Restored . | . . . Kills | -11 -10 -10 ------- Run | Yrd Mat Min Combat Hostiles Destroyed 21 | . 6 15 Guns 6 | . 4 2 AOE 15 | . 2 13 Classes Destroyed 7 | . 6 1 Worker 1 | . 1 . Builder 1 | . 1 . Tunneler 2 | . 1 1 Hauler 2 | . 2 . Swarmer 6 | . 3 3 Grunt 5 | . 3 2 Assembled 10 | . . 10 Best Kill Streak 10 | . 4 10 Combat Bots Only 10 | . 3 10 Max Kills in Single Turn 3 | . 2 3 Gunslinging . | . . . Exploded 3 | . 1 3 Melee . | . . . Uniques/NPCs Destroyed . | . . . Combat | -11 -10 -10 -------- Run | Yrd Mat Min Hostile Shots Fired 79 | . 24 55 Missed 11 | . 4 7 Hits 68 | . 20 48 Projectile 68 | . 20 48 AOE 13 | . . 13 Critical Strikes 3 | . 1 2 Damage Taken 1213 | . 242 971 Core 250 | . 82 168 Absorbed by Shields . | . . . Redirected to Shielding 53 | . . 53 Core Remaining (%) 100 | 100 . . Volleys Fired 59 | . 26 33 Largest 2 | . 2 2 Hottest 90 | . 70 90 Shots Fired 107 | . 50 57 Gun 96 | . 48 48 Cannon . | . . . Launcher 11 | . 2 9 Special . | . . . Kinetic 45 | . 24 21 Thermal 51 | . 24 27 Explosive 11 | . 2 9 Electromagnetic . | . . . Robot Hit Streak 18 | . 18 14 Robot Miss Streak 2 | . 2 2 Penetration Max . | . . . Secondary Targets . | . . . Shots Hit Robots 78 | . 38 40 Core Hits 49 | . 19 30 Critical Kills . | . . . Critical Parts Destroyed 1 | . 1 . Critical Strikes 4 | . 3 1 Burn 3 | . 2 1 Destroy 1 | . 1 . Melee Attacks . | . . . Impact . | . . . Slashing . | . . . Piercing . | . . . Sneak Attacks . | . . . Combat Hostiles . | . . . Follow-up Attacks . | . . . Damage Inflicted 1745 | . 619 1126 Guns 977 | . 486 491 Cannons . | . . . Explosions 768 | . 133 635 Melee . | . . . Ramming . | . . . Kinetic 447 | . 240 207 Thermal 530 | . 246 284 Explosive 768 | . 133 635 Electromagnetic . | . . . Impact . | . . . Slashing . | . . . Piercing . | . . . Highest Corruption . | . . . Average Corruption . | . . . Corruption Purged . | . . . Corruption Blocked . | . . . Overload Shots . | . . . Overflow Damage . | . . . Projectiles . | . . . Explosions . | . . . Melee . | . . . Knockbacks . | . . . Impact . | . . . Kinetic . | . . . Secondary . | . . . Self-Inflicted Damage 24 | . 24 . Shots 1 | . 1 . Rammed . | . . . Targets Rammed . | . . . Kicked . | . . . Crushed . | . . . Highest Temperature 363 | . 178 363 Average Temperature 118 | . 46 195 Received Heat Transfer 312 | . 108 204 Effects 2 | . . 2 Shutdowns 1 | . . 1 Damage (minor) 1 | . . 1 Siege Activations . | . . . Martial Activations . | . . . Shielding Activations . | . . . Robots Disrupted . | . . . Combat Hostiles . | . . . Robots Corrupted . | . . . Combat Hostiles . | . . . Parts Fried . | . . . Impact Corruptions . | . . . Robots Melted . | . . . Combat Hostiles . | . . . Parts Melted . | . . . Heat Transferred 1752 | . 888 864 Parts Sabotaged . | . . . Parts Stolen . | . . . Parts Stripped . | . . . Power Chain Reactions . | . . . Alert | -11 -10 -10 ------- Run | Yrd Mat Min Maximum Alert Level . | . . . Low Security (%) 100 | 100 100 100 Level 1 . | . . . Level 2 . | . . . Level 3 . | . . . Level 4 . | . . . Level 5 . | . . . High Security . | . . . Max Security . | . . . Peak Influence 122 | . 122 93 Initial . | . . . Average 22 | . 23 25 Influence Increases 377 | . 208 169 Destroy 0b10 Robot/C 220 | . 120 100 Destroy 0b10 Robot/NC 30 | . 25 5 Destroy Leader 44 | . 24 20 Successful Hack 19 | . 19 . Disable Machine 15 | . . 15 Destroy Structure 49 | . 20 29 Influence Decreases 377 | . 208 169 Time Decay 344 | . 208 136 Lost Part 33 | . . 33 Squads Dispatched . | . . . Investigation . | . . . Extermination . | . . . Reinforcement . | . . . Assault . | . . . Garrison . | . . . Intercept . | . . . Searches Triggered . | . . . Construction Impeded . | . . . Haulers Reinforced . | . . . Active Scanning Responses . | . . . Cargo Convoy Interrupts . | . . . Stealth | -11 -10 -10 --------- Run | Yrd Mat Min Distress Signals . | . . . Communications Jammed . | . . . Distress Signals . | . . . Times Spotted 34 | . 9 25 Peak Tracking Total 18 | . 4 18 Tactical Retreats . | . . . Traps | -11 -10 -10 ------- Run | Yrd Mat Min Traps Triggered . | . . . Indirectly . | . . . Trap Hack Attempts . | . . . Triggered . | . . . Disarmed . | . . . Reprogrammed . | . . . Reused . | . . . Traps Extracted . | . . . Installed . | . . . Triggered . | . . . Machines | -11 -10 -10 ---------- Run | Yrd Mat Min Machines Disabled 1 | . . 1 Max in Single Turn 1 | . . 1 Machines Repaired . | . . . Machines Dismantled . | . . . Machines Sabotaged . | . . . Overloaded Fab Kills . | . . . Hacking | -11 -10 -10 --------- Run | Yrd Mat Min Machines Accessed 5 | . 5 . Terminals 5 | . 5 . Fabricators . | . . . Repair Stations . | . . . Recycling Units . | . . . Scanalyzers . | . . . Garrison Access . | . . . Total Hacks 19 | . 19 . Successful 11 | . 11 . Failed 8 | . 8 . Catastrophic . | . . . Database Lockouts . | . . . Manual 18 | . 18 . Terminals 19 | . 19 . Fabricators . | . . . Repair Stations . | . . . Recycling Units . | . . . Scanalyzers . | . . . Garrison Access . | . . . Terminal Hacks 4 | . 4 . Robot Analysis 2 | . 2 . Terminal Index 1 | . 1 . Zone Layout 1 | . 1 . Fabricator Hacks . | . . . Repair Station Hacks . | . . . Recycling Unit Hacks . | . . . Scanalyzer . | . . . Garrison Access Hacks . | . . . Unauthorized Hacks 7 | . 7 . Terminals 7 | . 7 . Botnet 2 | . 2 . Skim 5 | . 5 . Fabricators . | . . . Repair Stations . | . . . Recycling Units . | . . . Scanalyzers . | . . . Garrison Access . | . . . Data Cores Recovered . | . . . Used . | . . . Hacking Detections 5 | . 5 . Full Trace Events . | . . . Feedback Events . | . . . Feedback Blocked . | . . . Robot Schematics Acquired . | . . . Robots Built . | . . . Authchips . | . . . Time . | . . . Total Robot Build Rating . | . . . Part Schematics Acquired . | . . . Parts Built . | . . . Authchips . | . . . Time . | . . . Total Part Build Rating . | . . . Part Studies Acquired . | . . . Parts Repaired . | . . . Time . | . . . Parts Recycled . | . . . Recycled Matter . | . . . Retrieved Matter . | . . . Retrieved Components . | . . . Parts Scanalyzed . | . . . Part Schematics Acquired . | . . . Parts Damaged . | . . . Bothacking | -11 -10 -10 ------------ Run | Yrd Mat Min Used RIF Installer . | . . . Robots Hacked . | . . . Non-combat . | . . . Combat . | . . . Robot Hacks Applied . | . . . Relay Couplers Released . | . . . Fabnet Peak Effective % . | . . . Robots Rewired . | . . . Allies Hacked . | . . . Hacks Repelled . | . . . Allies | -11 -10 -10 -------- Run | Yrd Mat Min Total Allies . | . . . Largest Group . | . . . Highest-Rated Group . | . . . Highest-Rated Ally . | . . . Total Orders . | . . . Ally Attacks . | . . . Total Damage . | . . . Kills . | . . . Allies Corrupted . | . . . Allies Melted . | . . . Intel | -11 -10 -10 ------- Run | Yrd Mat Min Active Infowar (turns) 34 | . 34 . Terrain 34 | . 34 . Robot Analysis Total 2 | . 2 . Derelict Logs Recovered 1 | . . 1 Drone Launches . | . . . Drone Recoveries . | . . . Exploration | -11 -10 -10 ------------- Run | Yrd Mat Min Turns Passed 1648 | 111 1035 502 Spaces Moved 611 | 62 313 236 Core 3 | 3 . . Treads 608 | 59 313 236 Legs . | . . . Wheels . | . . . Hover . | . . . Flight . | . . . Fastest Speed 50 | 50 160 160 Average Speed 159 | 154 160 160 Slowest Speed 160 | 160 160 160 Overloaded Moves . | . . . Propulsion Burnouts . | . . . Robots Hopped . | . . . Potential Cave-ins . | . . . Cave-ins Triggered . | . . . Exploration Rate (%) 38 | 4 51 59 Regions Visited 2 Branch Regions 1 Pre-discovered Areas . | . . . Known Exits Taken . | . . . Unknown Exits Taken 2 | 1 1 . Scrap Searched . | . . . Spaces Dug . | . . . Terrain Destroyed 57 | . 19 38 Melee . | . . . Projectile . | . . . AOE 57 | . 19 38 Terrain Rammed . | . . . Walls Destroyed . | . . . Machines Disabled . | . . . Actions | -11 -10 -10 --------- Run | Yrd Mat Min Total 1174 | 74 796 304 Wait 460 | . 440 20 Move 609 | 61 312 236 Hop . | . . . Pick Up 19 | 6 10 3 Fast Attach 7 | 6 1 . Attach 7 | . . 7 Detach . | . . . Swap 10 | 1 5 4 Drop 3 | . 2 1 Fire 59 | . 26 33 Melee . | . . . Ram . | . . . Kick . | . . . Crush . | . . . Escape Stasis . | . . . Rewire . | . . . Trap . | . . . Miscellaneous . | . . . Route ------- -11/Scrapyard -10/Materials (discovered 6 exits: *Mat x3 / [*Min x2] / Sub) -10/Mines (discovered 1 exit: *Mat) History --------- Turn | Location | Event 9 | -11/Scrapyard | Discovered new exit (range 15) 112 | -11/Scrapyard | Entered Materials 175 | -10/Materials | Discovered new exit (range 13) 315 | -10/Materials | Build established: Mutant 376 | -10/Materials | Discovered new exit (range 16) 386 | -10/Materials | Discovered new exit (range 10) 454 | -10/Materials | Discovered new exit (range 14) 699 | -10/Materials | Identified exit to Subcaves 807 | -10/Materials | Learned 2 Storage zone layouts 847 | -10/Materials | Identified exit to Materials 877 | -10/Materials | Learned location of 2 exits from Materials 925 | -10/Materials | Learned 2 Storage zone layouts 1013 | -10/Materials | Learned 2 Mines zone layouts 1147 | -10/Materials | Entered Mines 1286 | -10/Mines | Discovered exit to Materials (range 7) 1588 | -10/Mines | Assembled infested the area 1591 | -10/Mines | Core integrity fell below 50% 1593 | -10/Mines | Assisted by a Guerilla fighting off Assembled 1638 | -10/Mines | Core integrity fell below 20% 1642 | -10/Mines | Destroyed 10 combat bots 1649 | -10/Mines | Destroyed by D-53 Grenadier with Mini Grenade Launcher Last Messages --------------- 01615_ The unstable cave ceiling collapses. 01615_ as-28649 destroyed. 01618_ as-40748 destroyed. 01621_ as-37596 destroyed. 01623_ Acquired 1 matter. 01633_ C-45 Heavy ARC suffers critical hit (Destroy). 01634_ C-45 Heavy ARC bursts open, deploying its payload. 01634_ D-53 Grenadier unfolds itself. 01634_ 4T-AZG(h) destroyed. 01634_ Weapon Shielding destroyed. 01638_ Med. Laser destroyed. 01638_ Heat Sink destroyed. 01641_ The unstable cave ceiling collapses. 01641_ Lgt. Treads destroyed. 01641_ Assault Rifle destroyed. 01641_ Lgt. Ion Engine destroyed. 01642_ T-07 Excavator destroyed. 01643_ D-53 Grenadier destroyed. Map ----- +----------------------------------------------------+ | ???????????????? ##??# [ #???? | | ??????????????? ????########## #???? | | ??????????????" ## #?????????????## #???? | | ????????????? ?## ???????????????# ##???? | | ????????????"""???##??????????????## ##???? | | ????????????""?????????????#####?## [##??? | | ??????????????????????????## ### #??? | | ??????????????????????????# % #??? | | ??????????????????????????# * ##??? | | ??????????????????????????## ##???? | | #??# """ """ #??????????# ### ##????? | | #??# #??????????# #?## #?????? | | #??# """ """ #??????????# ##??# #?????? | | ???# """ """ #??????????####??## #?????? | | ???# """ """ #????????????????# #?????? | | ???# #?????###????????# ###?????? | | ???##############???### ????????# #???????? | | ????????????## ##??## ????????# #???????? | | ???????####?# ##?# ??####### #???????? | | #?????## ### #?# ??# #???????? | | ####### ## #?# ### ##### #???????? | | ### = ##??# #???????? | | ## = ###?# #???????? | | ###### % d ### ##??????? | | #????## #??????? | | ##?????# % @ #??????? | | #??????## <% ##??????? | | #???????; % ##???????? | | #???????# #????????? | | #???????# #????????? | | ##???????## #### ##????????? | | #?????????#;### ###??####?????????? | | ##?????????????# ### ##??????????????????? | | #??????????????###???##????????????????????? | | ???????????????????????????????????????????? | | | | | | | | | | | | | | | | | | | | | | | | | | | | | | | +----------------------------------------------------+ Best States ------------- Heat Dissipation 25 Energy Generation 14 Energy Capacity 250 Matter Stores 300 Matter Capacity 300 Sight Range 16 Terrain Scan Range 16 Terrain Scan Density 10 Armor Coverage 150 Weapon Shielding 33 Evasion (%) 40 Recoil Reduction 2 Item Schematics ----------------- None Robot Schematics ------------------ None Fabricated ------------ Nothing Repaired ---------- Nothing Studied --------- None Alien Tech Used ----------------- None Achievements -------------- None Challenges ------------ None Game ------ Seed BlanketSegregatorVibroblade Manual? 0 Play Time 00:14:55 Cumulative 121.5 hours Start 2026.07.15 @ 06:20:52 End 2026.07.15 @ 06:36:27 Sessions 1 Manual Loads 0 Difficulty Rogue Special Mode None Game No. 118 Rogue 111 Adventurer 0 Explorer 7 Win Type - Total 1 Types 1/0/0/0/0/0/0/0/0/0 Lore% 36 Gallery% 45 Achievement% 36 Wizard Run 0 Options --------- Layout 1 ASCII 0 Keyboard 1 Movement Numpad Keybinds 0 Fullscreen 2 Font 32/SmallcapsGlow Map View 50x35 Zoom Use 0% Tactical HUD 1 Map Filters NONE Filters NONE Steam 1 RUN: 9aa9af91-8971-4545-abd1-711efeb366db